Cogmind - Beta 14 @@@ ROGUE MODE // 2025.01.16 @ 20:46:55 Player: Grundleshunts Result: Destroyed by H-55 Commando with Assault Rifle Performance ------------- Evolutions (2) 1000 Regions Visited (4) 800 Robots Destroyed (21) 105 Value Destroyed (358) 358 Prototype IDs (2) 40 Alien Tech Used (0) 0 Bonus (0) 0 TOTAL SCORE: 2303 Bonus ------- None Cogmind --------- Core Integrity 0/550 Matter 300/300 Energy 100/100 System Corruption 5% Temperature Cool (0) Movement Core (50) Location -8/Materials Parts ------- > --- POWER (1) -------- (None) > --- PROPULSION (3) --- (None) > --- UTILITY (4) ------ (None) > --- WEAPON (3) ------- (None) > --- INVENTORY (5) ---- Trap Scanner Experimental Sensor Array Improved Terrain Scanner Shock Rifle Peak State ------------ > --- POWER ------------ Light Ion Engine > --- PROPULSION ------- Improved Flight Unit Improved Flight Unit > --- UTILITY ---------- Improved Heat Sink Seismic Detector ECM Suite System Shield > --- WEAPON ----------- Heavy Particle Gun > --- INVENTORY -------- Trap Scanner Experimental Sensor Array Improved Terrain Scanner Shock Rifle [Rating: 20] Favorites ----------- Power Light Ion Engine Engine Light Ion Engine Power Core Light Nuclear Core Propulsion Light Treads Treads Light Treads Flight Unit Improved Flight Unit Utility Seismic Detector Device Seismic Detector Storage Small Storage Unit Hackware Hacking Suite Weapon Medium Laser Energy Gun Medium Laser Special Weapon Mining Laser Build | -11 -10 -9 -9 -8 ------- Run | Yrd Mat Mat Min Mat Slots Evolved 4 | . . 2 . 2 Power . | . . . . . Propulsion 1 | . . . . 1 Utility 2 | . . 1 . 1 Weapon 1 | . . 1 . . Parts Attached 27 | 7 7 8 1 4 Power 5 | 1 2 1 . 1 Engine 3 | 1 1 . . 1 Core 2 | . 1 1 . . Reactor . | . . . . . Propulsion 8 | 2 2 4 . . Treads 4 | 2 2 . . . Leg . | . . . . . Wheel . | . . . . . Hover . | . . . . . Flight 4 | . . 4 . . Utility 8 | 2 2 2 . 2 Device 4 | 1 1 1 . 1 Storage 2 | 1 1 . . . Processor . | . . . . . Hackware 2 | . . 1 . 1 Protection . | . . . . . Artifact . | . . . . . Weapon 6 | 2 1 1 1 1 Energy Gun 5 | 2 1 . 1 1 Energy Cannon . | . . . . . Ballistic Gun . | . . . . . Ballistic Cannon . | . . . . . Launcher . | . . . . . Special Weapon 1 | . . 1 . . Impact Weapon . | . . . . . Slashing Weapon . | . . . . . Piercing Weapon . | . . . . . Special Melee Weapon . | . . . . . Unidentified Prototypes 2 | . . 1 . 1 Parts Lost 16 | . 2 4 1 9 Power 3 | . 1 . . 2 Propulsion 4 | . . 2 . 2 Utility 5 | . . 1 . 4 Weapon 4 | . 1 1 1 1 Highest Loss Streak 8 | . 2 4 1 8 To Critical Strikes . | . . . . . Average Slot Usage (%) 80 | . 95 70 58 57 Engine 6 | . 12 . . 2 Core 4 | . . 11 11 1 Treads 14 | . 27 . . . Flight 9 | . . 19 22 15 Device 17 | . 14 21 22 25 Storage 7 | . 14 . . . Hackware 2 | . . 7 . 8 Energy Gun 14 | . 25 . 3 3 Special Weapon 2 | . . 10 . . Peak Build Rating 20 | 9 12 14 16 20 Average Rating 10 | 7 8 12 14 15 On Entrance 8 | . 9 5 13 14 Naked Turns 1 | . . . . 1 Heaviest Build 17 | 12 17 8 10 10 Greatest Support 40 | 40 40 10 10 10 Greatest Overweight (x) 2 | . . 2 . 2 Average Overweight (x) . | . . . . . Largest Inventory Capacity 10 | 8 10 10 5 5 Average Capacity 7 | 7 8 5 5 5 Most Carried 10 | 4 10 9 5 4 Average Carried 5 | 1 7 4 3 3 Final Capacity 10 | 8 10 5 5 5 Final Carried 10 | 4 10 3 4 4 Class Distribution -------------------- 83% | Mutant 16% | Scavenger-Mutant Dominant Class ---------------- Mutant | -10/Materials Scavenger-Mutant | -9/Materials Mutant | -9/Mines Mutant | -8/Materials Resources | -11 -10 -9 -9 -8 ----------- Run | Yrd Mat Mat Min Mat Matter Collected 433 | 270 70 . 93 . Remotely . | . . . . . Salvage Created 525 | 131 250 . 89 55 Parts 45 | 17 24 . 2 2 Haulers Intercepted . | . . . . . Recyclers Shooed . | . . . . . Parts Field Recycled . | . . . . . Retrieved Matter . | . . . . . Parts Self-Destructed . | . . . . . Prevented . | . . . . . Kills | -11 -10 -9 -9 -8 ------- Run | Yrd Mat Mat Min Mat Combat Hostiles Destroyed 12 | . 7 . 2 3 Guns 12 | . 7 . 2 3 Classes Destroyed 5 | 1 4 . . . Tunneler 7 | 7 . . . . Operator 1 | . 1 . . . Watcher 1 | . 1 . . . Swarmer 6 | . 3 . . 3 Grunt 6 | . 4 . 2 . Best Kill Streak 3 | 3 2 . 2 3 Combat Bots Only 3 | . 2 . 2 3 Max Kills in Single Turn 2 | 1 2 . 1 1 Gunslinging 1 | . 1 . . . Exploded . | . . . . . Melee . | . . . . . Uniques/NPCs Destroyed . | . . . . . Combat | -11 -10 -9 -9 -8 -------- Run | Yrd Mat Mat Min Mat Hostile Shots Fired 218 | . 62 13 21 122 Missed 83 | . 19 5 11 48 Damage Taken 1895 | . 499 367 126 903 Core 934 | . 109 215 56 554 Absorbed by Shields . | . . . . . Regen/Repaired (Parts) 84 | . 84 . . . Core Remaining (%) 62 | 100 56 . 32 . Volleys Fired 120 | 22 34 34 18 12 Largest 2 | 2 2 1 1 1 Hottest 100 | 90 90 100 45 55 Shots Fired 176 | 44 68 34 18 12 Gun 142 | 44 68 . 18 12 Cannon . | . . . . . Launcher . | . . . . . Special 34 | . . 34 . . Kinetic . | . . . . . Thermal 158 | 44 68 34 . 12 Explosive . | . . . . . Electromagnetic 18 | . . . 18 . Robot Hit Streak 8 | 6 8 . 4 2 Robot Miss Streak 5 | 5 4 . 3 2 Penetration Max . | . . . . . Secondary Targets 2 | . 2 . . . Max Gunslinging Chain 1 | . 1 . . . Shots Hit Robots 75 | 19 40 . 9 7 Core Hits 39 | 7 18 . 3 11 Critical Kills . | . . . . . Critical Parts Destroyed . | . . . . . Critical Strikes 4 | 1 3 . . . Burn 4 | 1 3 . . . Melee Attacks . | . . . . . Impact . | . . . . . Slashing . | . . . . . Piercing . | . . . . . Sneak Attacks . | . . . . . Combat Hostiles . | . . . . . Follow-up Attacks . | . . . . . Damage Inflicted 1093 | 262 476 . 161 194 Guns 1035 | 262 476 . 161 136 Cannons . | . . . . . Explosions . | . . . . . Melee . | . . . . . Ramming 58 | . . . . 58 Kinetic . | . . . . . Thermal 874 | 262 476 . . 136 Explosive . | . . . . . Electromagnetic 161 | . . . 161 . Impact . | . . . . . Slashing . | . . . . . Piercing . | . . . . . Highest Corruption 9 | . 4 9 9 5 Average Corruption 5 | . 3 7 9 4 Corruption Purged . | . . . . . Corruption Blocked . | . . . . . Effects 9 | . 3 1 5 . Matter Fused 4 | . . 1 3 . Heat Flow Errors 2 | . 1 . 1 . Energy Discharges 1 | . 1 . . . Parts Rejected 1 | . 1 . . . Data Loss (minor) 1 | . . . 1 . Overload Shots . | . . . . . Overflow Damage . | . . . . . Projectiles . | . . . . . Explosions . | . . . . . Melee . | . . . . . Knockbacks 1 | . . . . 1 Impact 1 | . . . . 1 Kinetic . | . . . . . Secondary . | . . . . . Self-Inflicted Damage 24 | . . . . 24 Shots . | . . . . . Rammed 23 | . . . . 23 Targets Rammed 23 | . . . . 23 Kicked . | . . . . . Crushed . | . . . . . Highest Temperature 346 | 124 346 52 147 . Average Temperature 82 | 44 108 27 61 . Received Heat Transfer 486 | . 210 57 75 144 Effects 4 | . 4 . . . Interference 4 | . 4 . . . Siege Activations . | . . . . . Robots Corrupted . | . . . . . Combat Hostiles . | . . . . . Parts Fried 1 | . . . 1 . Impact Corruptions . | . . . . . Robots Melted . | . . . . . Combat Hostiles . | . . . . . Parts Melted 6 | 2 4 . . . Heat Transferred 2477 | 780 1438 . . 259 Parts Sabotaged . | . . . . . Parts Stolen . | . . . . . Parts Stripped . | . . . . . Power Chain Reactions . | . . . . . Alert | -11 -10 -9 -9 -8 ------- Run | Yrd Mat Mat Min Mat Peak Influence 219 | 35 204 121 106 219 Initial 46 | . 22 7 46 40 Average 71 | 15 98 42 81 127 Maximum Alert Level 1 | . 1 . . 1 Low Security (%) 88 | 100 73 100 100 93 Level 1 11 | . 26 . . 6 Level 2 . | . . . . . Level 3 . | . . . . . Level 4 . | . . . . . Level 5 . | . . . . . High Security . | . . . . . Max Security . | . . . . . Squads Dispatched 2 | . 1 1 . . Investigation . | . . . . . Extermination . | . . . . . Reinforcement 2 | . 1 1 . . Assault . | . . . . . Garrison . | . . . . . Intercept . | . . . . . Searches Triggered . | . . . . . Construction Impeded . | . . . . . Haulers Reinforced . | . . . . . Active Scanning Responses . | . . . . . Cargo Convoy Interrupts . | . . . . . Stealth | -11 -10 -9 -9 -8 --------- Run | Yrd Mat Mat Min Mat Distress Signals 4 | . 3 . . 1 Communications Jammed . | . . . . . Distress Signals . | . . . . . Times Spotted 41 | . 15 10 3 13 Peak Tracking Total 10 | . 4 7 3 10 Tactical Retreats 4 | . . 2 1 1 Traps | -11 -10 -9 -9 -8 ------- Run | Yrd Mat Mat Min Mat Traps Triggered 4 | . 4 . . . Indirectly . | . . . . . Trap Hack Attempts . | . . . . . Triggered . | . . . . . Disarmed . | . . . . . Reprogrammed . | . . . . . Reused . | . . . . . Traps Extracted . | . . . . . Installed . | . . . . . Triggered . | . . . . . Machines | -11 -10 -9 -9 -8 ---------- Run | Yrd Mat Mat Min Mat Machines Disabled . | . . . . . Max in Single Turn . | . . . . . Machines Repaired . | . . . . . Machines Dismantled . | . . . . . Machines Sabotaged . | . . . . . Overloaded Fab Kills . | . . . . . Hacking | -11 -10 -9 -9 -8 --------- Run | Yrd Mat Mat Min Mat Machines Accessed 4 | . 2 1 . 1 Terminals 3 | . 1 1 . 1 Fabricators . | . . . . . Repair Stations 1 | . 1 . . . Recycling Units . | . . . . . Scanalyzers . | . . . . . Garrison Access . | . . . . . Total Hacks 8 | . 3 2 . 3 Successful 7 | . 3 1 . 3 Failed 1 | . . 1 . . Catastrophic . | . . . . . Database Lockouts . | . . . . . Manual . | . . . . . Terminals 6 | . 1 2 . 3 Fabricators . | . . . . . Repair Stations 2 | . 2 . . . Recycling Units . | . . . . . Scanalyzers . | . . . . . Garrison Access . | . . . . . Terminal Hacks 5 | . 1 1 . 3 Emergency Access Points 1 | . . . . 1 Alert Level 1 | . . . . 1 Locate Traps 1 | . . 1 . . Hauler Manifests 1 | . 1 . . . Zone Layout 1 | . . . . 1 Fabricator Hacks . | . . . . . Repair Station Hacks 2 | . 2 . . . Scan Component 1 | . 1 . . . Repair 1 | . 1 . . . Recycling Unit Hacks . | . . . . . Scanalyzer . | . . . . . Garrison Access Hacks . | . . . . . Unauthorized Hacks . | . . . . . Terminals . | . . . . . Fabricators . | . . . . . Repair Stations . | . . . . . Recycling Units . | . . . . . Scanalyzers . | . . . . . Garrison Access . | . . . . . Data Cores Recovered . | . . . . . Used . | . . . . . Hacking Detections 1 | . . 1 . . Full Trace Events . | . . . . . Feedback Events . | . . . . . Feedback Blocked . | . . . . . Robot Schematics Acquired . | . . . . . Robots Built . | . . . . . Authchips . | . . . . . Time . | . . . . . Total Robot Build Rating . | . . . . . Part Schematics Acquired . | . . . . . Parts Built . | . . . . . Authchips . | . . . . . Time . | . . . . . Total Part Build Rating . | . . . . . Parts Repaired 1 | . 1 . . . Time 26 | . 26 . . . Parts Recycled . | . . . . . Recycled Matter . | . . . . . Retrieved Matter . | . . . . . Retrieved Components . | . . . . . Parts Scanalyzed . | . . . . . Part Schematics Acquired . | . . . . . Parts Damaged . | . . . . . Bothacking | -11 -10 -9 -9 -8 ------------ Run | Yrd Mat Mat Min Mat Used RIF Installer . | . . . . . Robots Hacked . | . . . . . Non-combat . | . . . . . Combat . | . . . . . Robot Hacks Applied . | . . . . . Relay Couplers Released . | . . . . . Fabnet Peak Effective % . | . . . . . Robots Rewired . | . . . . . Allies Hacked . | . . . . . Hacks Repelled . | . . . . . Allies | -11 -10 -9 -9 -8 -------- Run | Yrd Mat Mat Min Mat Total Allies . | . . . . . Largest Group . | . . . . . Highest-Rated Group . | . . . . . Highest-Rated Ally . | . . . . . Total Orders . | . . . . . Ally Attacks . | . . . . . Total Damage . | . . . . . Kills . | . . . . . Allies Corrupted . | . . . . . Allies Melted . | . . . . . Intel | -11 -10 -9 -9 -8 ------- Run | Yrd Mat Mat Min Mat Robot Analysis Total . | . . . . . Derelict Logs Recovered 1 | . . . 1 . Drone Launches . | . . . . . Drone Recoveries . | . . . . . Exploration | -11 -10 -9 -9 -8 ------------- Run | Yrd Mat Mat Min Mat Turns Passed 1307 | 282 543 229 127 126 Spaces Moved 945 | 128 243 182 232 160 Core 18 | 2 . 8 . 8 Treads 369 | 126 243 . . . Legs . | . . . . . Wheels . | . . . . . Hover . | . . . . . Flight 558 | . . 174 232 152 Fastest Speed 37 | 50 160 37 37 37 Average Speed 86 | 158 160 41 37 41 Slowest Speed 160 | 160 160 150 37 150 Overloaded Moves . | . . . . . Propulsion Burnouts . | . . . . . Robots Hopped 1 | . . 1 . . Cave-ins Triggered 3 | . . 3 . . Exploration Rate (%) 36 | 8 49 27 75 23 Regions Visited 4 Branch Regions 1 Pre-discovered Areas . | . . . . . Known Exits Taken . | . . . . . Unknown Exits Taken 4 | 1 1 1 1 . Scrap Searched 1 | . . . 1 . Spaces Dug 34 | . . 34 . . Terrain Destroyed 34 | . . 34 . . Melee . | . . . . . Projectile 34 | . . 34 . . AOE . | . . . . . Terrain Rammed . | . . . . . Walls Destroyed . | . . . . . Machines Disabled . | . . . . . Actions | -11 -10 -9 -9 -8 --------- Run | Yrd Mat Mat Min Mat Total 1181 | 160 329 232 254 206 Wait 37 | . 30 . 2 5 Move 939 | 127 242 179 231 160 Hop 1 | . . 1 . . Pick Up 23 | 4 11 4 2 2 Fast Attach 12 | 7 3 . . 2 Attach 10 | . 1 6 1 2 Detach . | . . . . . Swap 5 | . 3 2 . . Drop 11 | . 5 6 . . Fire 120 | 22 34 34 18 12 Melee . | . . . . . Ram 23 | . . . . 23 Kick . | . . . . . Crush . | . . . . . Escape Stasis . | . . . . . Rewire . | . . . . . Trap . | . . . . . Miscellaneous . | . . . . . Route ------- -11/Scrapyard -10/Materials -9/Materials -9/Mines (discovered 2 exits: *Mat x2) -8/Materials (discovered 1 exit: Fac) History --------- Turn | Location | Event 13 | -11/Scrapyard | Discovered new exit (range 15) 283 | -11/Scrapyard | Entered Materials 303 | -10/Materials | Build established: Mutant 592 | -10/Materials | Repaired Lgt. Treads 802 | -10/Materials | Discovered new exit (range 16) 826 | -10/Materials | Entered another Materials area 826 | -9/Materials | Evolved 2 slots: Utility x1, Weapon x1 1003 | -9/Materials | Crushed by falling debris 1022 | -9/Materials | Crushed by falling debris 1026 | -9/Materials | Crushed by falling debris 1050 | -9/Materials | Discovered new exit (range 12) 1051 | -9/Materials | Core integrity fell below 50% 1055 | -9/Materials | Entered Mines 1065 | -9/Mines | Lost 4 parts (2n1u1w) 1082 | -9/Mines | Found a damaged Exp. Sensor Array with a note attached 1083 | -9/Mines | Found Prototype Device 1114 | -9/Mines | Learned location of 1 exit from Materials 1155 | -9/Mines | Discovered new exit (range 13) 1180 | -9/Mines | Discovered new exit (range 5) 1182 | -9/Mines | Entered Materials 1182 | -8/Materials | Evolved 2 slots: Propulsion x1, Utility x1 1183 | -8/Materials | Identified exit to Factory 1294 | -8/Materials | Core integrity fell below 50% 1305 | -8/Materials | Core integrity fell below 20% 1308 | -8/Materials | Destroyed by H-55 Commando with Assault Rifle Last Messages --------------- Slammed into H-55 Commando. Slug penetrates Wall. Slammed into H-55 Commando. K-01 Serf collects debris. Slammed into H-55 Commando. Slug penetrates T-07 Excavator. T-07 Excavator destroyed. Imp. Heat Sink destroyed. Slammed into H-55 Commando. ECM Suite broken. Destabilizing: Short circuit. K-01 Serf collects debris. R-06 Scavenger collects Seismic Detector. Slammed into H-55 Commando. H-55 Commando knocked back. Slammed into H-55 Commando. Broken ECM Suite destroyed. System corrupted by crushing effect (+1). Slammed into H-55 Commando. Penetrated by Slug. Map ----- +----------------------------------------------------+ | ?????????????????????????????????????????????????? | | ?????????????????????????????????????????????????? | | ?????????????????????????????????????????????????? | | ?????????????????????????????????????????????????? | | ?????????????????????????????????????????????????? | | ?????????????????????????????????????????????????? | | ?????????????????????????????????????????????????? | | ?????????????????????????????????????????????????? | | ?????????????????????????????????????????????????? | | ??????????###########????????????????????????????? | | ??????????# """ #########????????????????????? | | ??????????# """"" # #????????????????????? | | #?????????# """"" # ########?????????????? | | ########## """"" # t ????????????? | | + """ + a ????????????? | | ####### # ????????????? | | #?????# # #####????????????????? | | #?????# # #????????????????????? | | #??############### #########?????????????? | | #??# # # ! ""?????????????? | | #??# """ """ """ # # "R?????????????? | | #??# """ """ """ + g%+ """?????????????????? | | #??# """ """ """ # # """?????????????????? | | #??# # %%#?????????????????????? | | #??# # %%#?????????????????????? | | #??###############= %@h#?????????????????????? | | #?????? ! #%%% #?????????????????????? | | #???????? """ #%*k #?????????????????????? | | #???????? """ ;%Ys m#?????????????????????? | | #???????? """ # r #?????????????????????? | | #?????? # % #?????????????????????? | | #?????##########?# #?????????????????????? | | #?????????????######+#######?????????????????? | | #?????????????# % #?????????????????? | | ### #?????????????# #?????????????????? | | #?? #?????????????# #?????????????????? | | #?? #?????????????# #?????????????????? | | #?# #?????????????# #?????????????????? | | #?# #?????????????# #?????????????????? | | #?# #?????????????# #?????????????????? | | #?# #?????????????# #?????????????????? | | #?# #?????????????# #?????????????????? | | #?# #?????????????# #?????????????????? | | #?# #?????????????# #?????????????????? | | ###+#### """ #?# #?????????????????? | | ## """ #?##############?????????????????? | | ## """ #????????????????????????????????? | | ## #######??????????????????????????? | | ########+## ###????????????????????????? | | # # #????????????????????????? | +----------------------------------------------------+ Best States ------------- Heat Dissipation 45 Energy Generation 14 Energy Capacity 160 Matter Stores 300 Matter Capacity 300 Sight Range 16 Terrain Scan Range 16 Terrain Scan Density 10 ECM Strength 1 Evasion (%) 62 Recoil Reduction 2 Offensive Hacking 10 Defensive Hacking 10 Item Schematics ----------------- None Robot Schematics ------------------ None Fabricated ------------ Nothing Alien Tech Used ----------------- None Achievements -------------- Risk Taker Unlikely Earthworm Challenges ------------ None Game ------ Seed HelicalSuperquantumShredder Manual? 0 Play Time 00:35:06 Cumulative 4.5 hours Start 2025.01.16 @ 19:56:36 End 2025.01.16 @ 20:46:55 Sessions 1 Manual Loads 0 Difficulty Rogue Special Mode None Game No. 5 Rogue 5 Adventurer 0 Explorer 0 Win Type - Total 0 Types 0/0/0/0/0/0/0/0/0 Lore% 1 Gallery% 4 Achievement% 6 Wizard Run 0 Options --------- Layout 1 ASCII 0 Keyboard 0 Movement Numpad Keybinds 0 Fullscreen 2 Font 48/Smallcaps Map View 50x35 Zoom Use 0% Tactical HUD 0 Map Filters NONE Filters NONE Steam 1 RUN: b1761da6-71af-49c5-abde-ee3db013b4bd